bitfinex/quotes_ETHUSD_20220117
["timestamp","ask_amount","ask_price","bid_price","bid_amount"]
[1642437885975,3.684e-05,3230.8,3230.7,25.70673578]
[1642437886175,3.684e-05,3230.8,3230.7,29.67691995]
[1642437886380,4.1104,3232.3,3230.8,20.5]
[1642437886578,0.3,3232.2,3231.1,0.77359]
[1642437886779,0.30795793,3232.2,3231.2,6.71796697]
[1642437886981,0.30795793,3232.2,3231.5,0.77353]
[1642437887279,0.00795793,3232.2,3231.5,0.77353]
[1642437887478,0.00795793,3232.2,3231.6,5.36214015]
[1642437887679,0.00795793,3232.2,3231.8,1.20782526]
[1642437887880,0.00795793,3232.2,3231.8,1.14949819]
[1642437888079,0.00795793,3232.2,3231.8,8.24754536]
[1642437888280,0.00795793,3232.2,3231.8,8.26896945]
[1642437888531,0.00795793,3232.2,3232.0,1.26444554]
[1642437888729,0.00795793,3232.2,3232.1,20.5]
[1642437888931,0.00795793,3232.2,3232.1,25.81126072]
[1642437889329,0.00795793,3232.2,3232.1,26.81126072]
[1642437889533,0.00795793,3232.2,3232.1,21.5]
[1642437889730,0.00795793,3232.2,3232.1,22.27344]
[1642437889933,0.00795793,3232.2,3232.1,21.27344]
[1642437890531,0.00795793,3232.2,3232.1,22.27344]
[1642437891335,5.793e-05,3232.2,3232.1,24.91951678]
[1642437891933,0.123804,3232.7,3232.3,1.62691491]
[1642437892182,0.123804,3232.7,3232.4,5.76930875]
[1642437892474,0.0022737,3232.6,3232.5,17.70444974]
[1642437892675,0.0022737,3232.6,3232.5,18.70444974]
[1642437893074,0.0022737,3232.6,3232.5,20.04513563]
[1642437893778,0.0022737,3232.6,3232.5,18.70444974]
[1642437893979,0.0022737,3232.6,3232.5,21.35052652]
[1642437895179,0.0022737,3232.6,3232.5,1.35444974]
[1642437895779,0.0022737,3232.6,3231.9,1.54681]
[1642437896223,0.00170527,3232.5,3232.0,0.00113685]
[1642437896629,0.00113685,3232.4,3232.0,0.00113685]
[1642437896826,0.00113685,3232.4,3232.1,0.05410933]
[1642437897027,0.00113685,3232.4,3232.0,0.00113685]
[1642437897231,0.00113685,3232.4,3232.2,1.29750486]
[1642437899231,0.00113685,3232.4,3232.2,2.07091486]
[1642437901579,0.00113685,3232.4,3232.3,17.59601574]
[1642437901978,0.00113685,3232.4,3232.3,22.29601574]
[1642437902382,0.12294085,3232.7,3232.4,18.25]
[1642437902579,0.12294085,3232.7,3232.4,19.02332]
[1642437902779,0.00113685,3232.6,3232.4,19.02332]
[1642437903179,0.00113685,3232.6,3232.5,22.7893691]
[1642437903640,0.00113685,3232.6,3232.5,21.27332]
[1642437904041,0.00113685,3232.6,3232.5,27.64455766]
[1642437904240,0.00113685,3232.6,3232.5,24.91933574]
[1642437904839,0.00113685,3232.6,3232.5,26.07303916]
[1642437905044,3.9027777,3233.1,3232.6,9.55]
[1642437905441,0.00227369,3233.0,3232.6,9.55]
[1642437905844,0.00170527,3232.9,3232.6,9.55]
[1642437906043,0.00170527,3232.9,3232.7,2.64601574]
[1642437906243,0.00113684,3232.8,3232.7,2.64601574]
[1642437906844,0.00113684,3232.8,3232.7,17.74601574]
[1642437907593,0.00113684,3232.8,3232.7,15.1]
[1642437907988,0.00113684,3232.8,3232.7,16.42504275]
[1642437908394,0.00113684,3232.8,3232.7,19.0708226]
[1642437909096,0.00113684,3232.8,3232.7,16.42504275]
[1642437909495,0.85343824,3232.8,3232.7,16.42504275]
[1642437912931,0.123788,3233.3,3232.7,16.42504275]
[1642437912932,0.123788,3233.3,3232.8,0.2403]
[1642437913131,0.123788,3233.3,3232.9,0.77312]
[1642437913329,0.123788,3233.3,3233.0,6.0180946]
[1642437913530,0.123788,3233.3,3233.0,5.9610042]
[1642437913731,0.123788,3233.3,3233.1,1.0]
[1642437913931,0.123788,3233.3,3233.2,5.36994524]
[1642437914132,0.123788,3233.3,3233.2,6.29249154]
[1642437914331,0.12663012,3233.3,3233.2,6.29249154]
[1642437914776,0.12663012,3233.3,3233.2,25.79249154]
[1642437914977,0.12663012,3233.3,3233.2,23.14569755]
[1642437915183,0.12663012,3233.3,3233.2,22.14569755]
[1642437915380,0.12663012,3233.3,3233.2,23.14569755]
[1642437916181,0.12663012,3233.3,3233.2,22.14569755]
[1642437917582,0.12663012,3233.3,3233.2,19.5]
[1642437919954,0.12663012,3233.3,3233.2,7.66077337]
[1642437920160,0.12663012,3233.3,3233.2,2.64524017]
[1642437920755,0.12663012,3233.3,3233.2,5.05]
[1642437921757,0.12663012,3233.3,3233.2,9.4]
[1642437923180,0.12663012,3233.3,3232.8,0.1903]
[1642437923581,0.0022737,3233.2,3232.8,0.1903]
[1642437923982,0.00170527,3233.1,3232.8,0.1903]
[1642437924181,0.00170527,3233.1,3232.9,0.06387729]
[1642437924381,0.123788,3233.3,3232.8,0.1903]
[1642437924382,0.00113685,3233.0,3232.8,0.1903]
[1642437924781,0.423788,3233.3,3232.9,7.64550459]
[1642437924782,0.0022737,3233.2,3232.9,7.64550459]
[1642437925184,0.00170527,3233.1,3232.9,7.64550459]
[1642437925383,0.00170527,3233.1,3232.9,2.64550459]
[1642437925588,0.00113685,3233.0,3232.2,1.54665]
[1642437926023,0.0022737,3233.2,3232.3,0.00284211]
[1642437926425,0.00170527,3233.1,3232.2,0.00341054]
[1642437926825,0.37413685,3233.0,3232.3,2.64565171]
[1642437927028,0.373,3232.9,3232.3,2.64565171]
[1642437927227,0.373,3232.9,3232.4,0.00227369]
[1642437927630,0.673,3232.9,3232.4,0.00227369]
[1642437928031,1.32992378,3232.5,3232.4,0.00227369]
[1642437928336,2.00292378,3232.5,3232.4,0.00227369]
[1642437928533,2.30292378,3232.5,3232.4,0.00227369]
[1642437928729,2.30292378,3232.5,3232.3,0.00284211]
[1642437930182,2.30292378,3232.5,3231.9,0.00511581]
[1642437932184,2.30292378,3232.5,3231.6,0.00682108]
[1642437932786,2.30292378,3232.5,3232.0,2.64629808]
[1642437932985,0.7737167,3232.4,3232.0,2.64629808]
[1642437933185,0.7737167,3232.4,3232.1,0.00397896]
[1642437933829,0.373,3232.3,3232.1,0.00397896]
[1642437934028,0.673,3232.3,3232.1,0.00397896]
[1642437934229,0.673,3232.3,3231.5,3.96004046]
[1642437934230,0.673,3232.3,3231.6,0.00682108]
[1642437935030,0.673,3232.3,3231.7,0.08220876]
[1642437935231,0.673,3232.3,3231.6,0.00682108]
[1642437935431,0.673,3232.3,3231.8,0.00568423]
[1642437935631,0.673,3232.3,3231.6,0.00682108]
[1642437936134,0.673,3232.3,3231.8,0.05359827]
[1642437936332,0.673,3232.3,3231.7,2.64627695]
[1642437936530,0.673,3232.3,3231.9,0.00511581]
[1642437936731,0.673,3232.3,3231.8,0.00568423]
[1642437937195,0.673,3232.3,3231.9,2.64627695]
[1642437937592,3.935,3232.6,3232.0,6.39774435]
[1642437937791,3.7374737,3233.2,3232.2,1.54663]
[1642437937990,4.9842737,3233.2,3232.3,0.77333]
[1642437938190,4.9842737,3233.2,3232.3,0.77617211]
[1642437938191,0.00170527,3233.1,3232.3,0.77617211]
[1642437938391,0.00170527,3233.1,3232.4,0.00227369]
[1642437938591,3.177288,3233.3,3232.8,1.09821828]
[1642437938592,0.00113685,3233.0,3232.8,1.09821828]
[1642437938991,0.0022737,3233.2,3232.9,0.77325]
[1642437939391,0.00170527,3233.1,3232.9,0.82817099]
[1642437939596,0.00170527,3233.1,3232.9,0.77325]
[1642437939795,0.00113685,3233.0,3232.9,0.77325]
[1642437939993,0.00113685,3233.0,3232.9,6.21152022]
[1642437940194,0.0022737,3233.0,3232.9,6.21152022]
[1642437940692,0.0022737,3233.0,3232.9,26.66152022]
[1642437941450,0.0022737,3233.0,3232.9,44.74152022]
[1642437941647,7.37e-05,3233.0,3232.9,48.38674043]
[1642437941855,7.37e-05,3233.0,3232.9,48.388372]
[1642437942854,7.37e-05,3233.0,3232.9,52.35673726]
[1642437943253,0.123788,3233.3,3233.1,0.86979296]
[1642437943452,0.123788,3233.3,3233.2,5.85966062]
[1642437944059,0.27639994,3234.5,3233.2,6.85966062]
[1642437944255,0.27639994,3234.5,3233.5,0.77303]
[1642437944455,0.00682108,3234.4,3233.5,6.16140425]
[1642437944688,0.00682108,3234.4,3233.5,0.77303]
[1642437944882,0.00625265,3234.3,3233.5,0.77303]
[1642437945082,0.00625265,3234.3,3233.5,0.67303]
[1642437945282,0.27639994,3234.5,3234.0,1.12194325]
[1642437945283,0.00568423,3234.2,3234.0,1.12194325]
[1642437945684,0.00511581,3234.1,3234.0,1.12194325]
[1642437946486,0.00511581,3234.1,3234.0,10.72194325]
[1642437946987,0.00511581,3234.1,3234.0,1.12194325]
[1642437947186,0.00511581,3234.1,3233.5,6.12259478]
[1642437947387,0.13324557,3234.5,3233.6,14.15]
[1642437947590,0.13324557,3234.5,3233.7,0.82290838]
[1642437947789,0.00170527,3234.4,3233.7,0.7753337]
[1642437947989,0.00170527,3234.4,3233.8,0.00170527]
[1642437948187,0.00113684,3234.3,3233.8,0.00170527]
[1642437948425,0.00113684,3234.3,3234.2,1.18426198]
[1642437949032,0.00113684,3234.3,3234.2,6.7796682]
[1642437949231,0.00113684,3234.3,3234.2,1.18426198]
[1642437949434,0.00113684,3234.3,3234.2,11.08426198]
[1642437950532,0.00113684,3234.3,3234.2,1.18426198]
[1642437950934,0.373,3234.9,3234.4,0.07671233]
[1642437951134,0.673,3234.9,3234.3,4.92183316]
[1642437951336,0.00284212,3234.8,3234.2,1.18426198]
[1642437951733,0.0022737,3234.7,3234.2,1.18426198]
[1642437952203,0.00170528,3234.6,3234.2,1.18426198]
[1642437952692,0.673,3234.9,3234.3,0.08503157]
[1642437952693,0.00113685,3234.5,3234.3,0.08503157]
[1642437953092,0.00113685,3234.5,3234.2,1.18426198]
[1642437953697,0.00113685,3234.5,3234.3,0.04981077]
[1642437953894,0.00113685,3234.5,3234.2,1.18426198]
[1642437954498,0.00113685,3234.5,3234.3,0.09795791]
[1642437954795,0.00113685,3234.5,3234.4,15.02289]
[1642437956040,0.00113685,3234.5,3234.4,0.77289]
[1642437956240,0.00113685,3234.5,3234.3,0.77296]
[1642437957243,0.00113685,3234.5,3234.2,1.18426198]
[1642437959046,0.00113685,3234.5,3234.2,8.81997144]
[1642437959245,0.00113685,3234.5,3234.3,0.09795791]
[1642437959446,0.00113685,3234.5,3234.2,3.50287198]
[1642437959879,3.7965,3235.2,3234.2,3.50287198]
[1642437960078,3.7965,3235.2,3235.1,1.14430124]
[1642437960280,4.5357,3235.7,3235.1,1.14430124]
[1642437960483,0.123686,3235.8,3235.1,1.14430124]
[1642437960683,0.00454739,3235.3,3235.1,1.14430124]
[1642437961082,0.00397897,3235.2,3235.1,1.14430124]
[1642437961285,0.00397897,3235.2,3235.1,19.44430124]
[1642437961482,0.00397897,3235.2,3235.1,22.53495124]
[1642437962382,0.00397897,3235.2,3235.1,20.98969124]
[1642437965232,0.00397897,3235.2,3235.1,19.44430124]
[1642437965831,0.00397897,3235.2,3235.1,1.14430124]
[1642437966033,0.00397897,3235.2,3235.0,0.77267]
[1642437966233,0.00397897,3235.2,3234.6,0.7729]
[1642437966433,0.00341054,3235.1,3234.3,3.86504685]
[1642437966833,0.00284212,3235.0,3234.3,3.86504685]
[1642437967035,0.00284212,3235.0,3234.3,2.31938685]
[1642437967278,0.0022737,3234.9,3234.3,0.00113685]
[1642437967480,0.3,3234.8,3234.3,0.00113685]
[1642437967681,0.00170527,3234.8,3234.3,0.00113685]
[1642437967980,0.00113685,3234.7,3234.3,0.00113685]
[1642437968384,0.00341054,3235.1,3234.0,0.00284212]
[1642437968582,0.373,3235.0,3234.0,0.00284212]
[1642437968781,0.37584212,3235.0,3233.9,0.00341054]
[1642437968981,1.35366597,3234.3,3233.9,0.00341054]
[1642437969386,2.38596597,3234.3,3233.9,0.00341054]
[1642437969586,2.98596597,3234.3,3233.7,0.00454739]
[1642437969781,2.98596597,3234.3,3233.3,0.0049544]
[1642437969782,2.98596597,3234.3,3233.4,0.00625266]
[1642437969985,0.373,3234.2,3233.4,0.00625266]
[1642437970784,0.373,3234.2,3233.4,0.77943266]
[1642437971226,0.373,3234.2,3233.5,0.00568423]
[1642437971528,0.373,3234.2,3233.6,0.05304727]
[1642437971728,0.373,3234.2,3233.8,1.23474312]
[1642437972130,0.373,3234.2,3233.9,0.00341054]
[1642437973536,0.373,3234.2,3234.0,0.0525832]
[1642437973738,0.373,3234.2,3233.9,0.00341054]
[1642437973936,0.373,3234.2,3234.1,7.15227369]
[1642437974136,0.373,3234.2,3234.1,7.15]
[1642437974336,0.373,3234.2,3234.1,7.15227369]
[1642437976477,0.373,3234.2,3234.1,0.00227369]
[1642437976679,0.673,3234.2,3234.1,0.00227369]
[1642437976877,0.673,3234.2,3233.9,0.00341054]
[1642437977076,0.673,3234.2,3233.4,0.00625266]
[1642437977077,1.3698,3234.2,3233.4,0.00625266]
[1642437977280,1.3698,3234.2,3233.1,0.00795793]
[1642437977480,1.3698,3234.2,3233.0,0.00852635]
[1642437977687,1.3698,3234.2,3233.9,2.64448188]
[1642437977882,0.3,3234.1,3233.9,2.64448188]
[1642437978181,1.10276438,3234.0,3233.9,2.64448188]
[1642437978433,1.40276438,3234.0,3233.9,2.64448188]
[1642437978631,1.40276438,3234.0,3233.9,2.64789242]
[1642437978831,1.77576438,3234.0,3233.3,0.00682108]
[1642437979232,1.77576438,3234.0,3233.3,2.65149657]
[1642437979431,2.77576438,3234.0,3233.3,2.65149657]
[1642437979632,2.77576438,3234.0,3233.4,0.00625266]
[1642437979832,0.77341,3233.9,3233.4,0.00625266]
[1642437980035,2.2200641,3233.8,3233.4,0.00625266]
[1642437980237,0.68546453,3233.8,3233.3,0.26752815]
[1642437980432,0.68546453,3233.8,3233.0,1.5148237]
[1642437980433,0.00170527,3233.7,3233.0,1.5148237]
[1642437980635,0.373,3233.6,3233.0,1.5148237]
[1642437980835,0.67413685,3233.6,3233.1,0.00170527]
[1642437981034,0.77354,3233.5,3233.1,0.00170527]
[1642437981234,0.373,3233.4,3232.6,0.00454738]
[1642437981636,0.673,3233.4,3232.6,0.00454738]
[1642437982176,0.3,3233.3,3232.6,0.00454738]
[1642437982376,0.373,3233.2,3232.6,0.00454738]
[1642437982576,0.673,3233.2,3232.6,0.00454738]
[1642437983177,0.673,3233.2,3232.5,0.00511581]
[1642437983981,5.33329091,3233.1,3232.5,0.00511581]
[1642437984183,5.33329091,3233.1,3232.3,1.5148237]
[1642437984184,1.373,3233.0,3232.4,0.00568423]
[1642437984482,5.47321281,3232.9,3232.4,0.00568423]
[1642437984682,0.373,3232.8,3232.4,0.00568423]
[1642437984883,1.32023536,3232.7,3232.4,0.00568423]
[1642437985082,0.373,3232.6,3232.4,0.00568423]
[1642437985286,0.673,3232.6,3232.4,0.00568423]
[1642437985484,5.98314182,3232.6,3232.4,0.00568423]
[1642437985683,6.08355678,3232.6,3232.2,0.00682108]
[1642437986128,1.0,3232.5,3232.2,0.00682108]
[1642437986326,0.373,3232.4,3232.2,0.00682108]
[1642437986529,6.02020994,3232.4,3232.2,0.00682108]
[1642437986931,6.34155322,3232.4,3232.0,0.00795792]
[1642437987132,0.973,3232.4,3232.0,0.00795792]
[1642437987431,6.29708307,3232.4,3232.0,0.00795792]
[1642437987632,1.78338993,3232.4,3232.0,0.00795792]
[1642437987836,7.21604247,3232.4,3232.0,0.00795792]
[1642437988031,7.21604247,3232.4,3231.6,1.5148237]
[1642437988032,7.21604247,3232.4,3231.7,0.0096632]
[1642437988632,7.95317694,3232.4,3231.7,0.0096632]
[1642437988833,7.98485387,3232.4,3231.7,0.0096632]
[1642437989036,7.21106947,3232.4,3231.7,0.0096632]
[1642437989234,7.21235341,3232.4,3231.7,0.04937722]
[1642437989433,7.21781473,3232.4,3231.7,0.04937722]
[1642437989678,7.21781473,3232.4,3231.8,0.00909477]
[1642437989879,1.0,3232.3,3231.8,0.00909477]
[1642437990081,1.0,3232.3,3231.6,1.5148237]
[1642437990082,7.38480739,3232.2,3231.6,1.52505532]
[1642437990280,7.72109108,3232.2,3231.7,0.0096632]
[1642437990483,1.3,3232.1,3231.7,0.0096632]
[1642437990680,0.373,3232.0,3231.7,0.0096632]
[1642437991480,0.373,3232.0,3231.4,0.01136847]
[1642437991884,0.373,3232.0,3231.5,0.77364]
[1642437992283,0.373,3232.0,3231.6,0.01023162]
[1642437992484,0.373,3232.0,3231.6,0.00340252]
[1642437992687,6.02410118,3232.9,3231.6,0.00340252]
[1642437992688,0.01256318,3232.9,3231.9,20.24664975]
[1642437992888,3.873,3233.0,3232.1,0.77349]
[1642437993091,0.00341856,3232.8,3232.1,0.77349]
[1642437993456,0.00285014,3232.7,3232.1,0.77349]
[1642437993847,3.873,3233.0,3232.4,1.52681229]
[1642437993848,0.00228172,3232.6,3232.4,1.52681229]
[1642437994247,3.873,3233.0,3232.1,0.77349]
[1642437994248,0.00171329,3232.5,3232.1,0.77349]
[1642437994650,0.00114487,3232.4,3232.1,0.77349]
[1642437994849,0.00114487,3232.4,3232.2,0.06199284]
[1642437995048,0.00114487,3232.4,3232.1,1.54693]
[1642437995049,0.00455541,3233.0,3232.1,1.54693]
[1642437995249,0.00455541,3233.0,3232.1,0.77349]
[1642437995449,0.00398699,3232.9,3232.7,0.0553201]
[1642437995654,0.00398699,3232.9,3232.7,2.34709837]
[1642437995849,0.00341856,3232.8,3232.7,23.51507827]
[1642437997048,0.00341856,3232.8,3232.7,27.48180108]
[1642437997679,0.00328197,3233.1,3232.8,20.35]
[1642437997879,0.00328197,3233.1,3232.8,21.8964]
[1642437998184,0.00113685,3233.0,3232.8,21.8964]
[1642437998381,7.1271,3234.2,3232.8,21.8964]
[1642437998382,0.373,3234.6,3233.1,20.45]
[1642437998586,7.2397,3234.6,3233.5,0.77306]
[1642437998784,0.00454739,3233.8,3233.5,0.77306]
[1642437998984,0.00454739,3233.8,3233.5,2.31912]
[1642437999285,0.00397896,3233.7,3233.5,2.31912]
[1642437999484,1.1994222,3233.7,3233.5,0.77306]
[1642437999688,0.00341054,3233.6,3233.4,1.54611]
[1642438000086,0.00284212,3233.5,3233.4,1.54611]
[1642438001338,3.7397,3234.6,3233.6,1.29778725]
[1642438001538,0.3,3234.6,3234.0,1.12737285]
[1642438001738,0.373,3235.0,3234.0,1.0651496]
[1642438001739,0.00568423,3234.5,3234.0,1.0651496]
[1642438002140,0.00511581,3234.4,3234.1,0.07422949]
[1642438002440,0.00454738,3234.3,3234.1,0.84718949]
[1642438002839,0.00397896,3234.2,3234.1,21.22296]
[1642438003252,7.46742432,3235.5,3234.2,20.4539]
[1642438003441,7.46742432,3235.5,3234.3,0.06473051]
[1642438003442,3.5,3235.5,3234.3,0.06473051]
[1642438003640,0.00682108,3235.4,3234.5,0.77281]
[1642438003940,0.00625266,3235.3,3234.5,0.77281]
[1642438004141,0.00625266,3235.3,3234.4,2.83658691]
[1642438004341,0.00568424,3235.2,3234.4,2.83658691]
[1642438004779,0.00511581,3235.1,3234.9,1.37743623]
[1642438004979,0.00511581,3235.1,3234.8,0.77275]
[1642438005181,0.00454739,3235.0,3234.8,1.5455]
[1642438005380,0.00454739,3235.0,3234.8,0.77275]
[1642438005580,0.00397897,3234.9,3234.4,1.54561]
[1642438005787,0.00397897,3234.9,3234.3,3.96672281]
[1642438006080,0.00341054,3234.8,3234.3,5.23772035]
[1642438006481,0.00284212,3234.7,3234.3,5.23772035]
[1642438006880,0.0022737,3234.6,3234.3,5.23772035]
[1642438007281,0.00170527,3234.5,3234.3,5.23772035]
[1642438007479,0.00170527,3234.5,3234.3,6.01066035]
[1642438007680,5.6362126,3235.5,3234.3,6.01066035]
[1642438007681,0.00113685,3234.4,3234.3,6.01066035]
[1642438007881,0.00113685,3234.4,3234.3,2.04393754]
[1642438008537,0.00113685,3234.4,3234.3,0.77294]
[1642438008736,0.00113685,3234.4,3234.2,0.0039]
[1642438009939,1.17949412,3234.4,3233.5,1.54623]
[1642438010137,1.17949412,3234.4,3233.2,1.65797807]
[1642438010138,5.46940084,3234.3,3233.2,1.65797807]
[1642438010337,5.76940084,3234.3,3233.5,0.00397896]
[1642438010537,5.76940084,3234.3,3233.3,0.00511581]
[1642438010940,0.3,3234.3,3233.5,1.11936418]
[1642438011137,1.85249412,3234.4,3233.5,1.11936418]
[1642438011138,1.85249412,3234.4,3233.6,0.77311]
[1642438011338,1.85249412,3234.4,3233.7,0.05708416]
[1642438011545,2.15249412,3234.4,3233.7,0.00284212]
[1642438011737,2.15249412,3234.4,3233.8,0.00227369]
[1642438011937,2.15249412,3234.4,3233.7,0.00284212]
[1642438012596,3.15249412,3234.4,3233.7,0.00284212]
[1642438012995,3.15249412,3234.4,3233.5,1.54617]
[1642438013399,2.15249412,3234.4,3233.5,1.54617]
[1642438013603,1.85249412,3234.4,3233.5,2.69528548]
[1642438013801,1.85249412,3234.4,3233.5,3.46840548]
[1642438014000,1.85249412,3234.4,3233.7,0.77311]
[1642438014402,1.85249412,3234.4,3233.8,0.00227369]
[1642438015932,2.15249412,3234.4,3233.8,0.00227369]
[1642438016735,2.15249412,3234.4,3233.8,2.64671085]
[1642438017034,2.15249412,3234.4,3233.9,0.05220125]
[1642438017233,2.15249412,3234.4,3233.9,0.00170527]
[1642438017433,2.15249412,3234.4,3234.0,0.00113685]
[1642438017633,2.15249412,3234.4,3233.9,0.00170527]
[1642438017833,2.15249412,3234.4,3233.5,0.77317]
[1642438018836,2.15249412,3234.4,3233.6,0.09142493]
[1642438019136,2.15249412,3234.4,3233.7,0.00284212]
[1642438019537,2.15249412,3234.4,3233.6,2.64443716]
[1642438019794,2.15249412,3234.4,3233.7,0.00284212]
[1642438020200,2.15249412,3234.4,3233.7,0.77596212]
[1642438020402,0.67413685,3234.4,3233.7,0.77596212]
[1642438020601,0.67413685,3234.4,3233.8,0.05599018]
[1642438020800,0.67413685,3234.4,3233.8,0.00227369]
[1642438021004,5.31415284,3234.3,3233.9,0.00170527]
[1642438021206,5.31415284,3234.3,3233.8,0.00227369]
[1642438021207,0.373,3234.2,3233.8,0.00227369]
[1642438021401,0.373,3234.2,3233.8,2.64443716]
[1642438021402,1.373,3234.2,3233.8,2.64443716]
[1642438021601,0.673,3234.2,3233.8,2.64443716]
[1642438021800,0.673,3234.2,3233.9,0.00170527]
[1642438022001,0.80907099,3234.1,3233.9,0.00170527]
[1642438022201,0.373,3234.0,3233.3,1.5148237]
[1642438022401,0.98572692,3234.0,3233.3,1.5148237]
[1642438022600,0.98572692,3234.0,3233.4,0.00284212]
[1642438022802,1.98572692,3234.0,3233.4,0.00284212]
[1642438023002,1.98572692,3234.0,3232.9,0.00568423]
[1642438023203,5.72700532,3233.9,3232.8,0.00625266]
[1642438023429,0.373,3233.8,3232.8,0.00625266]
[1642438023636,2.14649,3233.8,3232.8,0.00625266]
[1642438023837,6.74258898,3233.7,3232.8,0.00625266]
[1642438024032,6.74258898,3233.7,3232.3,1.5148237]
[1642438024033,1.373,3233.6,3232.4,0.00852635]
[1642438024235,5.5041989,3233.5,3232.4,0.00852635]
[1642438024433,0.373,3233.4,3232.4,0.00852635]
[1642438024635,1.373,3233.4,3232.4,0.00852635]
[1642438024833,5.27799734,3233.3,3232.4,0.00852635]
[1642438025034,0.373,3233.2,3232.4,0.00852635]
[1642438026235,0.373,3233.2,3232.5,0.05494412]
[1642438026436,0.373,3233.2,3232.4,0.00852635]
[1642438026634,0.373,3233.2,3232.6,0.0073895]
[1642438026635,0.673,3233.2,3232.6,0.0073895]
[1642438026834,0.373,3233.2,3232.4,0.00852635]
[1642438027033,0.673,3233.2,3232.6,0.0073895]
[1642438027288,0.673,3233.2,3232.3,0.00909477]
[1642438027495,0.373,3233.2,3232.3,0.00909477]
[1642438027794,0.373,3233.2,3232.1,1.5148237]
[1642438027795,5.48083974,3233.1,3232.2,0.0096632]
[1642438027994,0.373,3233.0,3232.2,0.0096632]
[1642438028194,2.3082,3233.0,3232.2,0.0096632]
[1642438028593,1.6082,3233.0,3232.2,0.0096632]
[1642438028795,1.42365434,3232.6,3232.2,0.0096632]
[1642438028999,0.673,3232.5,3232.2,0.0096632]
[1642438029195,0.673,3232.5,3231.9,0.01136847]
[1642438029595,0.673,3232.5,3232.0,0.07366818]
[1642438029794,0.373,3232.5,3232.0,0.07366818]
[1642438030095,0.373,3232.5,3232.1,0.01023162]
[1642438030495,0.373,3232.5,3232.3,1.32422437]
[1642438030695,0.3,3232.6,3232.3,1.32422437]
[1642438030929,0.373,3233.1,3232.4,0.00852635]
[1642438031132,0.3,3233.1,3232.4,0.00852635]
[1642438031331,0.3,3233.3,3232.6,0.77334]
[1642438031537,0.6,3233.3,3232.6,0.77334]
[1642438031732,0.3,3233.3,3232.8,0.77332]
[1642438031936,0.3,3233.4,3233.0,1.29952321]
[1642438032136,1.973,3233.6,3233.0,1.29952321]
[1642438032335,1.973,3233.6,3233.1,0.06278279]
[1642438032537,0.973,3233.6,3233.1,0.00454739]
[1642438032736,0.6,3233.6,3233.2,0.00397896]
[1642438032937,0.3,3233.6,3233.1,0.00454739]
[1642438033138,0.3,3233.5,3233.1,0.00454739]
[1642438033338,0.3,3233.8,3233.1,0.00454739]
[1642438033638,4.0091,3234.1,3233.5,1.43787273]
[1642438033836,0.373,3234.1,3233.5,1.43787273]
[1642438034041,0.373,3234.1,3232.9,0.00568423]
[1642438034703,0.673,3234.1,3232.9,0.00568423]
[1642438034893,0.7734041,3234.0,3232.9,0.00568423]
[1642438035094,0.3,3233.9,3232.8,0.00625266]
[1642438035293,0.6,3233.9,3233.0,1.48905907]
[1642438035594,0.6,3233.9,3233.1,0.00454739]
[1642438036195,0.6,3233.9,3233.2,0.05817814]
[1642438036396,0.6,3233.9,3233.1,0.00454739]
[1642438036601,0.6,3233.9,3233.3,0.00341054]
[1642438036798,0.6,3233.9,3233.1,0.00454739]
[1642438036999,0.7734686,3233.8,3233.1,0.00454739]
[1642438037200,1.95835085,3233.8,3233.1,0.00454739]
[1642438037397,0.6,3233.7,3232.9,0.00568423]
[1642438037599,0.373,3233.6,3232.9,0.00568423]
[1642438038200,0.77355,3233.5,3232.9,0.00568423]
[1642438038448,1.11053768,3233.2,3232.9,0.00568423]
[1642438038649,2.08353768,3233.2,3232.9,0.00568423]
[1642438040052,2.08353768,3233.2,3233.0,0.09795791]
[1642438040552,2.08353768,3233.2,3233.1,0.00454739]
[1642438040553,3.08353768,3233.2,3233.1,0.00454739]
[1642438040953,2.85713968,3233.2,3232.9,0.00568423]
[1642438041152,1.0,3233.1,3232.9,0.00568423]
[1642438041354,0.373,3233.0,3232.9,0.00568423]
[1642438041554,0.673,3233.0,3232.9,0.00568423]
[1642438042484,0.673,3233.0,3232.8,1.90568423]
[1642438045087,0.673,3233.0,3232.9,2.64540174]
[1642438045947,0.673,3233.0,3232.8,1.90568423]
[1642438047739,0.373,3233.0,3232.8,1.90568423]
[1642438048945,0.673,3233.0,3231.8,1.5148237]
[1642438049145,0.673,3233.0,3232.2,1.9056]
[1642438049780,0.673,3233.0,3231.9,6.66723778]
[1642438050181,1.673,3233.0,3232.0,0.00511581]
[1642438050379,0.673,3233.0,3232.3,2.64598628]
[1642438050581,0.7737138,3232.7,3232.3,2.64598628]
[1642438050784,0.373,3232.6,3232.4,0.00284212]
[1642438050984,0.673,3232.6,3232.4,0.00284212]
[1642438052089,0.673,3232.6,3232.2,0.00397897]
[1642438052285,0.3,3232.5,3232.2,0.00397897]
[1642438052486,0.373,3232.5,3232.2,0.00397897]
[1642438052685,0.373,3232.5,3232.4,1.20120579]
[1642438052885,0.673,3232.5,3232.4,1.20120579]
[1642438053085,0.673,3232.5,3232.4,1.20404791]
[1642438054148,3.17518354,3233.0,3232.4,1.20404791]
[1642438054549,3.17518354,3233.0,3232.6,1.9056]
[1642438054754,3.17518354,3233.0,3232.5,0.0022737]
[1642438054952,3.17518354,3233.0,3232.8,1.9056]
[1642438055148,7.14260786,3233.5,3232.6,1.35286298]
[1642438055348,3.17518354,3233.5,3232.6,1.35286298]
[1642438055549,0.00227369,3233.3,3232.7,0.00113685]
[1642438055951,0.00170527,3233.2,3232.7,0.00113685]
[1642438056352,0.00113684,3233.1,3233.0,1.15391343]
[1642438057051,0.00113684,3233.1,3232.7,2.64670484]
[1642438057290,0.00113684,3233.1,3232.7,0.00113685]
[1642438057985,0.00113684,3233.1,3232.7,2.64663631]
[1642438058186,0.00113684,3233.1,3232.7,2.64549946]
[1642438058787,0.00113684,3233.1,3232.6,2.64549946]
[1642438059187,0.00113684,3233.1,3232.7,0.00113685]
[1642438059388,0.30113684,3233.1,3232.7,0.00113685]
[1642438059989,1.11308105,3233.1,3232.7,0.00113685]
[1642438060190,1.07470594,3233.1,3232.7,0.00113685]
[1642438060591,1.11309138,3233.1,3232.7,0.00113685]
[1642438060940,1.07470594,3233.1,3232.7,0.00113685]
[1642438061349,1.1066136,3233.1,3232.7,0.00113685]
[1642438061544,1.11063858,3233.1,3232.7,0.00113685]
[1642438063347,1.88424858,3233.1,3232.7,0.00113685]